bitfinex/quotes_SOLUSD_20251125
["timestamp","ask_amount","ask_price","bid_price","bid_amount"]
[1764039990420,3.51034608,138.57,138.55,8.80994492]
[1764039990943,4.19034608,138.57,138.55,8.80994492]
[1764039991343,11.40713722,138.57,138.55,8.80994492]
[1764039991964,4.19034608,138.56,138.54,3.18]
[1764039992245,4.19034608,138.56,138.55,8.80994492]
[1764039992543,7.21679114,138.57,138.55,8.80994492]
[1764039993043,7.89679114,138.57,138.55,8.80994492]
[1764039993448,7.89584144,138.59,138.57,8.80994492]
[1764039993822,0.68,138.59,138.57,8.80994492]
[1764039994343,7.89556664,138.59,138.55,16.73753247]
[1764039994658,0.68,138.59,138.57,8.80994492]
[1764039994830,7.89555898,138.59,138.57,8.80994492]
[1764039995429,4.19034608,138.58,138.55,8.80994492]
[1764039995831,4.19034608,138.57,138.52,0.71]
[1764039996024,3.51034608,138.56,138.52,12.69994492]
[1764039996214,4.19034608,138.57,138.52,19.91909892]
[1764039996417,4.19034608,138.57,138.54,8.80994492]
[1764039996638,0.68,138.57,138.54,8.80994492]
[1764039996842,4.19034608,138.57,138.54,8.80994492]
[1764039998352,11.40711735,138.57,138.54,8.80994492]
[1764039999028,4.19034608,138.57,138.54,9.51994492]
[1764039999230,11.40697704,138.57,138.54,9.51994492]
[1764039999436,4.19034608,138.56,138.53,8.80994492]
[1764040000037,4.19034608,138.56,138.53,9.51994492]
[1764040000728,0.68,138.56,138.53,9.51994492]
[1764040001851,7.89604849,138.58,138.54,0.71]
[1764040002055,0.68,138.57,138.54,0.71]
[1764040002247,4.19034608,138.57,138.53,7.2185895]
[1764040002638,0.68,138.56,138.53,7.2185895]
[1764040002950,7.21710761,138.56,138.53,7.9285895]
[1764040003153,7.89710761,138.56,138.53,7.9285895]
[1764040004355,0.68,138.56,138.53,7.9285895]
[1764040004651,0.68,138.59,138.54,9.51994492]
[1764040004855,0.68,138.59,138.56,8.80994492]
[1764040005056,7.89581261,138.59,138.56,8.80994492]
[1764040005528,7.89581261,138.59,138.56,9.51994492]
[1764040005728,11.40615869,138.59,138.56,9.51994492]
[1764040006024,11.40615869,138.59,138.56,8.80994492]
[1764040006860,0.68,138.58,138.56,8.80994492]
[1764040007031,11.40615869,138.59,138.56,8.80994492]
[1764040007233,4.19034608,138.58,138.56,8.80994492]
[1764040007459,0.68,138.57,138.53,3.89]
[1764040007757,11.40615869,138.59,138.55,8.80994492]
[1764040008136,7.89581261,138.59,138.57,8.80994492]
[1764040008336,7.21581261,138.59,138.57,8.80994492]
[1764040011359,0.68,138.58,138.57,8.80994492]
[1764040011561,4.19034608,138.58,138.57,8.80994492]
[1764040011937,7.21581261,138.59,138.55,0.71]
[1764040012143,7.21581261,138.59,138.54,23.4284007]
[1764040012349,7.21581261,138.59,138.55,0.71]
[1764040012779,3.61034608,138.61,138.55,4.22034608]
[1764040012956,0.8,138.61,138.57,8.80994492]
[1764040013146,0.1,138.61,138.57,11.98994492]
[1764040013352,0.1,138.61,138.59,8.80994492]
[1764040013849,0.8,138.61,138.59,8.80994492]
[1764040014745,0.1,138.61,138.59,0.67]
[1764040015450,0.8,138.61,138.58,8.80994492]
[1764040015967,4.31034608,138.61,138.58,8.80994492]
[1764040016167,4.31034608,138.61,138.58,9.51994492]
[1764040016564,3.61034608,138.61,138.58,9.51994492]
[1764040016757,0.1,138.61,138.59,13.030291]
[1764040016961,0.1,138.61,138.59,9.51994492]
[1764040017161,0.1,138.61,138.6,0.71]
[1764040017473,4.29034608,138.61,138.58,8.80994492]
[1764040018466,3.61034608,138.61,138.58,8.80994492]
[1764040018665,0.68,138.6,138.58,8.80994492]
[1764040018879,3.51034608,138.59,138.58,8.80994492]
[1764040019173,0.68,138.6,138.58,8.80994492]
[1764040019352,7.3149434,138.61,138.58,8.80994492]
[1764040019677,7.3149434,138.61,138.58,9.51994492]
[1764040020177,0.1,138.61,138.59,0.71]
[1764040020477,0.1,138.61,138.6,3.18]
[1764040020973,0.1,138.61,138.6,3.89]
[1764040021663,0.1,138.61,138.6,19.91495213]
[1764040022778,0.1,138.61,138.6,12.69994492]
[1764040023162,0.1,138.61,138.6,19.91495213]
[1764040023654,0.1,138.61,138.6,22.15727786]
[1764040024461,0.1,138.61,138.6,19.91495213]
[1764040025472,0.1,138.61,138.6,11.98994492]
[1764040025784,0.1,138.61,138.6,12.69994492]
[1764040026561,0.1,138.61,138.6,19.91495213]
[1764040026781,0.1,138.61,138.6,12.69994492]
[1764040027390,0.1,138.61,138.6,19.91495213]
[1764040028807,0.1,138.61,138.6,12.69994492]
[1764040029172,0.1,138.61,138.6,11.98994492]
[1764040029498,0.1,138.61,138.6,12.69994492]
[1764040029679,0.1,138.61,138.6,19.91495213]
[1764040030390,0.1,138.61,138.6,22.15727786]
[1764040030594,0.1,138.61,138.6,25.04797343]
[1764040032406,0.1,138.61,138.6,22.8056477]
[1764040032577,0.1,138.61,138.6,25.04797343]
[1764040035904,0.1,138.62,138.61,8.80994492]
[1764040036085,0.1,138.62,138.61,11.76227065]
[1764040037234,0.1,138.62,138.61,68.97675733]
[1764040037536,0.1,138.63,138.61,85.28562133]
[1764040037696,0.1,138.63,138.62,14.94227065]
[1764040038404,0.78,138.71,138.63,58.80994492]
[1764040038601,3.02232573,138.71,138.66,8.80994492]
[1764040038804,2.24232573,138.7,138.68,8.80994492]
[1764040039008,2.92232573,138.7,138.68,8.80994492]
[1764040039597,0.1,138.71,138.69,0.71]
[1764040039805,0.1,138.71,138.7,14.23227065]
[1764040040115,0.1,138.71,138.7,20.95924784]
[1764040040291,0.1,138.71,138.7,23.91157357]
[1764040041528,0.1,138.71,138.7,31.1213789]
[1764040043596,1e-08,138.71,138.7,31.1213789]
[1764040047031,7.30475912,138.85,138.76,8.80994492]
[1764040047235,0.67,138.82,138.78,8.80994492]
[1764040047529,0.67,138.82,138.8,8.80994492]
[1764040047694,0.1,138.85,138.82,8.80994492]
[1764040047895,0.1,138.85,138.83,3.18]
[1764040048098,0.67,138.84,138.83,11.98994492]
[1764040050396,0.1,138.85,138.84,8.80994492]
[1764040051023,0.1,138.85,138.84,11.05227065]
[1764040051203,0.1,138.85,138.84,11.71227065]
[1764040051519,0.1,138.85,138.84,36.25113607]
[1764040051908,0.1,138.85,138.84,36.91113607]
[1764040052110,0.1,138.85,138.84,34.66881034]
[1764040052315,0.1,138.85,138.84,26.80627505]
[1764040052908,0.1,138.85,138.84,8.80994492]
[1764040053107,0.77,138.85,138.84,8.80994492]
[1764040053626,0.1,138.85,138.84,8.80994492]
[1764040054396,0.1,138.85,138.84,18.25480594]
[1764040054596,0.77,138.85,138.83,11.98994492]
[1764040054801,0.77,138.85,138.83,8.80994492]
[1764040055027,0.77,138.85,138.84,3.18]
[1764040055227,3.01232573,138.85,138.84,3.18]
[1764040055522,10.2144456,138.85,138.83,8.80994492]
[1764040055713,0.67,138.84,138.83,8.80994492]
[1764040057034,0.1,138.85,138.83,8.80994492]
[1764040057239,0.77,138.85,138.83,8.80994492]
[1764040057708,3.01232573,138.85,138.83,8.80994492]
[1764040058029,10.21453281,138.85,138.83,8.80994492]
[1764040058242,0.67,138.84,138.83,8.80994492]
[1764040059230,2.91232573,138.84,138.78,9.44763329]
[1764040059403,2.24232573,138.83,138.79,11.98994492]
[1764040059604,2.91232573,138.83,138.79,11.98994492]
[1764040059826,0.67,138.82,138.79,11.98994492]
[1764040060134,2.24232573,138.8,138.79,11.98994492]
[1764040060426,2.24232573,138.8,138.79,3.18]
[1764040060628,2.91232573,138.8,138.78,8.80994492]
[1764040060809,0.67,138.79,138.78,8.80994492]
[1764040061237,2.91232573,138.79,138.78,8.80994492]
[1764040061429,2.91232573,138.79,138.77,3.18]
[1764040061622,2.91232573,138.78,138.74,8.80994492]
[1764040061929,2.24232573,138.76,138.71,2.24232573]
[1764040062131,10.11849421,138.77,138.72,3.18]
[1764040062432,10.11849421,138.77,138.73,8.80994492]
[1764040062630,0.67,138.76,138.73,8.80994492]
[1764040062813,7.87616848,138.77,138.73,9.46994492]
[1764040063211,0.67,138.79,138.74,2.90232573]
[1764040063410,0.67,138.79,138.76,8.80994492]
[1764040064532,7.87520613,138.79,138.76,8.80994492]
[1764040064735,10.11753186,138.79,138.76,8.80994492]
[1764040064918,0.67,138.78,138.76,8.80994492]
[1764040065331,2.91232573,138.78,138.76,8.80994492]
[1764040065833,0.67,138.77,138.76,8.80994492]
[1764040066031,0.67,138.79,138.76,8.80994492]
[1764040066604,2.91232573,138.79,138.76,8.80994492]
[1764040066809,2.24232573,138.78,138.76,8.80994492]
[1764040067039,2.91232573,138.78,138.76,8.80994492]
[1764040067239,0.67,138.77,138.76,8.80994492]
[1764040067939,2.91232573,138.77,138.76,8.80994492]
[1764040068434,0.67,138.77,138.76,8.80994492]
[1764040069833,2.91232573,138.77,138.76,8.80994492]
[1764040070420,0.67,138.77,138.76,8.80994492]
[1764040070739,7.87616848,138.77,138.76,8.80994492]
[1764040070935,0.67,138.77,138.76,8.80994492]
[1764040071241,10.11849421,138.77,138.75,3.18]
[1764040071821,2.91232573,138.76,138.75,11.98994492]
[1764040072423,10.11901353,138.76,138.75,11.98994492]
[1764040072722,7.8766878,138.76,138.75,3.18]
[1764040073241,7.8766878,138.76,138.73,8.80994492]
[1764040073422,7.8766878,138.76,138.73,11.98994492]
[1764040073822,0.67,138.76,138.73,11.98994492]
[1764040074826,2.24232573,138.75,138.66,83.55992914]
[1764040075033,2.24232573,138.72,138.68,8.80994492]
[1764040075346,25.22176134,138.77,138.68,8.80994492]
[1764040075347,2.24232573,138.73,138.68,8.80994492]
[1764040075523,2.24232573,138.73,138.68,9.48994492]
[1764040075719,2.93232573,138.73,138.69,0.68]
[1764040075918,2.93232573,138.73,138.71,8.80994492]
[1764040076119,0.69,138.72,138.71,8.80994492]
[1764040076318,10.14109158,138.72,138.7,3.18]
[1764040076739,0.71,138.71,138.67,0.69]
[1764040077045,0.71,138.71,138.65,18.03101334]
[1764040077046,2.24232573,138.68,138.62,0.69]
[1764040077248,2.24232573,138.65,138.6,0.69]
[1764040077423,2.24232573,138.64,138.61,3.18]
[1764040077620,0.71,138.68,138.61,3.18]
[1764040077836,2.24232573,138.67,138.63,8.80994492]
[1764040078043,2.24232573,138.66,138.63,8.80994492]
[1764040078455,2.95232573,138.65,138.63,8.80994492]
[1764040079048,0.71,138.64,138.62,3.18]
[1764040079357,2.95232573,138.64,138.61,3.18]
[1764040079527,0.71,138.64,138.61,3.18]
[1764040079844,0.71,138.64,138.61,3.87]
[1764040080047,0.71,138.64,138.61,3.18]
[1764040082646,0.71,138.66,138.62,8.80994492]
[1764040082838,9.29414755,138.66,138.62,9.49994492]
[1764040083038,9.29414755,138.64,138.61,3.18]
[1764040083371,9.29414755,138.62,138.57,0.89]
[1764040083526,9.29414755,138.62,138.59,3.2]
[1764040083728,10.00414755,138.62,138.59,3.2]
[1764040084951,17.21822795,138.62,138.59,3.2]
[1764040085838,9.29414755,138.6,138.57,0.2]
[1764040086036,9.29414755,138.58,138.57,0.2]
[1764040086564,10.00414755,138.58,138.57,0.2]
[1764040086944,17.22019604,138.58,138.57,0.2]
[1764040087365,35.26031726,138.58,138.5,12.00994492]
[1764040087682,9.29414755,138.53,138.5,12.00994492]
[1764040088065,26.31301155,138.55,138.5,12.00994492]
[1764040088281,25.60301155,138.55,138.51,0.69]
[1764040088486,0.71,138.54,138.5,12.69994492]
[1764040088982,17.22232034,138.54,138.5,12.69994492]
[1764040089158,17.22232034,138.54,138.5,12.00994492]
[1764040089483,0.71,138.53,138.5,12.00994492]
[1764040089779,9.29414755,138.53,138.5,12.69994492]
[1764040089980,17.22232034,138.54,138.5,12.69994492]
[1764040090479,0.71,138.54,138.51,0.69]
[1764040090646,0.71,138.54,138.5,19.9200325]
[1764040091351,0.71,138.54,138.5,16.7200325]
[1764040091552,17.22232269,138.54,138.5,12.69994492]
[1764040091980,17.22232269,138.54,138.5,12.00994492]
[1764040092158,10.00414755,138.53,138.5,12.00994492]
[1764040092481,0.71,138.54,138.5,12.00994492]
[1764040092789,0.71,138.58,138.52,8.80994492]
[1764040092957,9.29414755,138.56,138.54,8.80994492]
[1764040093154,9.29414755,138.57,138.54,8.80994492]
[1764040093362,7.21709006,138.56,138.54,8.80994492]
[1764040093863,7.92709006,138.56,138.54,8.80994492]
[1764040094779,16.308864,138.58,138.55,0.69]
[1764040095276,3.91,138.59,138.55,0.69]
[1764040095461,20.41987507,138.59,138.55,0.69]
[1764040095661,16.50928329,138.6,138.56,8.80994492]
[1764040095876,9.29414755,138.62,138.56,21.30409247]
[1764040096066,25.60301155,138.62,138.57,0.69]
[1764040096373,10.00414755,138.61,138.56,8.80994492]
[1764040096581,9.29414755,138.6,138.56,12.00994492]
[1764040096757,10.00414755,138.61,138.57,0.69]
[1764040096957,10.00414755,138.61,138.56,12.00994492]
[1764040097259,0.71,138.6,138.57,0.69]
[1764040097864,7.21489712,138.61,138.57,0.69]
[1764040098484,10.00414755,138.6,138.56,12.00994492]
[1764040098679,0.71,138.6,138.56,19.91692442]
[1764040098868,7.21489712,138.61,138.57,0.69]
[1764040099256,26.31301155,138.62,138.58,8.80994492]
[1764040099257,24.2330396,138.62,138.58,8.80994492]
[1764040099458,9.29414755,138.59,138.56,3.2]
[1764040099872,25.24909119,138.62,138.58,8.80994492]
[1764040100079,35.25323874,138.62,138.58,8.80994492]
[1764040100272,10.00414755,138.61,138.55,33.5104173]
[1764040100580,9.29414755,138.59,138.56,12.00994492]
[1764040100777,9.29414755,138.6,138.56,12.00994492]
[1764040101083,9.29414755,138.6,138.56,12.69994492]
[1764040101283,10.00414755,138.6,138.56,12.69994492]
[1764040101484,17.21965014,138.6,138.56,12.69994492]
[1764040101782,10.00414755,138.59,138.56,12.00994492]
[1764040101986,17.21965014,138.6,138.56,12.69994492]
[1764040102160,7.92550259,138.6,138.56,12.69994492]
[1764040102586,17.21965014,138.6,138.56,12.69994492]
[1764040103562,16.50965014,138.6,138.56,19.22699948]
[1764040103758,7.21550259,138.6,138.57,0.72]
[1764040104486,7.21550259,138.6,138.56,12.00994492]
[1764040104659,17.17965014,138.6,138.56,12.72994492]
[1764040105259,16.50965014,138.6,138.57,0.72]
[1764040105459,17.17965014,138.6,138.56,12.00994492]
[1764040105661,7.21604849,138.58,138.56,12.00994492]
[1764040105871,16.50989383,138.59,138.56,12.72994492]
[1764040106758,7.21574628,138.59,138.56,12.72994492]
[1764040106983,27.39295914,138.62,138.58,8.80994492]
[1764040107187,36.68710669,138.62,138.58,8.80994492]
[1764040107481,0.67,138.61,138.58,8.80994492]
[1764040107872,7.88494093,138.61,138.58,8.80994492]
[1764040108262,17.17908848,138.61,138.58,8.80994492]
[1764040108764,7.21494093,138.61,138.58,9.52994492]
[1764040111892,16.50908848,138.61,138.58,9.52994492]
[1764040112571,7.21494093,138.61,138.58,9.52994492]
[1764040113996,17.17833993,138.62,138.58,9.52994492]
[1764040114976,35.21325552,138.62,138.58,9.52994492]
[1764040116599,35.21325552,138.62,138.56,19.71101883]
[1764040116600,9.29414755,138.6,138.55,7.93744495]
[1764040116797,9.29414755,138.6,138.56,3.2]
[1764040117001,9.96414755,138.6,138.56,3.92]
[1764040117396,9.96414755,138.6,138.57,0.72]
[1764040119414,17.17966577,138.6,138.57,0.72]
[1764040119912,17.17966577,138.6,138.56,3.92]
[1764040120480,11.39126897,138.6,138.56,3.92]
[1764040120799,10.72126897,138.6,138.56,0.72]
[1764040120987,4.17575075,138.59,138.56,8.80994492]
[1764040121309,4.17575075,138.59,138.55,0.72]
[1764040121500,7.21604849,138.58,138.55,0.72]
[1764040122401,10.72179924,138.58,138.54,8.80994492]
[1764040122710,0.67,138.57,138.54,8.80994492]
[1764040122913,0.67,138.57,138.54,9.52994492]
[1764040123600,7.21709006,138.56,138.53,3.2]
[1764040123910,7.21709006,138.56,138.51,0.72]
[1764040123911,25.25981523,138.56,138.5,15.51569567]
[1764040124111,7.21709006,138.56,138.54,8.80994492]
[1764040124591,7.21709006,138.56,138.54,0.72]
[1764040124783,0.67,138.55,138.52,9.52994492]
[1764040124990,4.17575075,138.55,138.51,8.80994492]
[1764040125188,3.50575075,138.53,138.51,8.80994492]
[1764040125621,7.21917412,138.52,138.51,8.80994492]
[1764040125818,7.21917412,138.52,138.5,3.92]
[1764040125994,7.21917412,138.52,138.51,0.72]
[1764040126799,7.21835098,138.54,138.51,0.72]
[1764040126994,11.39410173,138.54,138.51,0.72]
[1764040128086,7.88835098,138.54,138.51,0.72]
[1764040128290,7.21835098,138.54,138.51,0.72]
[1764040129499,29.43943159,138.54,138.5,3.92]
[1764040130114,29.43943159,138.54,138.51,0.72]
[1764040130500,25.93368084,138.54,138.51,0.72]
[1764040130901,29.43943159,138.54,138.51,0.72]
[1764040131717,7.21835098,138.54,138.51,0.72]
[1764040132219,29.43738914,138.55,138.51,0.72]
[1764040135122,28.76738914,138.55,138.51,0.72]
[1764040135317,25.26163839,138.55,138.52,8.80994492]
[1764040135824,25.26163839,138.55,138.53,0.72]
[1764040137219,25.26163839,138.55,138.52,8.80994492]
[1764040137526,4.17575075,138.54,138.5,3.92]
[1764040138406,7.21865299,138.53,138.5,3.92]
[1764040139429,7.21865299,138.53,138.51,0.72]
[1764040140294,7.21865299,138.53,138.5,3.2]
[1764040140496,7.21865299,138.53,138.5,3.92]
[1764040141137,7.21865299,138.53,138.5,3.2]
[1764040141138,0.67,138.52,138.5,3.2]
[1764040141307,2.24572508,138.51,138.46,16.308864]
[1764040141636,2.24572508,138.48,138.45,0.2]
[1764040142136,2.91572508,138.49,138.46,8.80994492]
[1764040142504,7.22125938,138.48,138.46,0.72]
[1764040142807,7.22125938,138.48,138.47,0.72]
[1764040143007,7.22125938,138.48,138.46,0.72]
[1764040143328,7.22093661,138.49,138.46,0.72]
[1764040144528,7.21976539,138.51,138.47,11.05567]
[1764040144913,7.21976539,138.51,138.49,8.80994492]
[1764040145304,7.21932338,138.52,138.5,0.72]
[1764040145504,2.91572508,138.57,138.51,8.80994492]
[1764040145937,2.91572508,138.57,138.52,0.72]
[1764040146436,7.21709006,138.56,138.52,0.72]
[1764040146741,25.25981523,138.56,138.52,0.72]
[1764040147252,0.67,138.55,138.51,8.80994492]
[1764040147460,2.24572508,138.54,138.51,8.80994492]
[1764040147827,2.91572508,138.55,138.51,9.52994492]
[1764040148235,2.91572508,138.55,138.52,0.72]
[1764040148236,2.24572508,138.55,138.52,0.72]
[1764040148552,30.70554031,138.56,138.52,0.72]
[1764040148757,31.37554031,138.56,138.52,0.72]
[1764040149630,2.91572508,138.55,138.51,8.80994492]
[1764040149829,2.24572508,138.54,138.51,8.80994492]
[1764040150027,2.91572508,138.54,138.5,3.92]
[1764040150237,2.91572508,138.53,138.5,3.2]
[1764040150553,7.21917412,138.52,138.48,0.72]
[1764040150743,28.18283451,138.52,138.48,9.52994492]
[1764040151330,28.18283451,138.52,138.48,8.80994492]
[1764040151331,2.91572508,138.51,138.48,8.80994492]
[1764040153038,7.2202166,138.5,138.48,8.80994492]
[1764040153750,9.46594168,138.5,138.47,3.92]
[1764040154140,7.2202166,138.5,138.47,3.92]
[1764040154734,25.27075811,138.5,138.47,3.92]
[1764040155647,7.2202166,138.5,138.47,3.2]
[1764040155849,7.21933205,138.52,138.48,9.52994492]
[1764040156148,7.21933205,138.52,138.49,8.80994492]
[1764040156352,7.21933205,138.52,138.49,9.52994492]
[1764040156651,7.2190021,138.53,138.51,8.80994492]
[1764040156852,7.21833216,138.54,138.51,8.80994492]
[1764040157046,3.87,138.55,138.51,8.80994492]
[1764040157246,3.87,138.55,138.51,9.52994492]
[1764040157247,10.13336222,138.55,138.51,9.52994492]
[1764040157556,2.91572508,138.54,138.51,8.80994492]
[1764040158257,7.21865299,138.53,138.51,8.80994492]
[1764040158734,7.21865299,138.53,138.52,0.72]
[1764040158940,7.21833437,138.54,138.52,0.72]
[1764040159536,19.508864,138.57,138.52,2.96572508]
[1764040159537,37.55030243,138.57,138.52,2.96572508]
[1764040159726,34.35030243,138.57,138.52,2.96572508]
[1764040159928,37.26602751,138.57,138.53,0.72]
[1764040160347,7.21717981,138.56,138.53,0.72]
[1764040162854,10.14290489,138.56,138.51,8.80994492]
[1764040163151,10.14290489,138.56,138.52,0.72]
[1764040163750,9.46290489,138.56,138.52,0.72]
[1764040164552,9.46290489,138.56,138.52,7.93909442]
[1764040164937,9.46290489,138.56,138.53,0.72]
[1764040165139,7.21717981,138.56,138.53,0.72]
[1764040166141,9.46290489,138.56,138.53,0.72]
[1764040166464,10.14290489,138.56,138.53,0.72]
[1764040166961,9.46290489,138.56,138.53,0.72]
[1764040167453,7.21717981,138.56,138.53,0.72]
[1764040168341,9.46290489,138.56,138.53,0.72]
[1764040168763,10.14290489,138.56,138.53,0.72]
[1764040169259,7.89717981,138.56,138.53,0.72]
[1764040169560,7.21717981,138.56,138.53,0.72]
[1764040170449,25.25800767,138.57,138.53,0.72]
[1764040170649,2.24572508,138.6,138.54,11.05567]
[1764040170853,7.21552781,138.59,138.54,11.05567]
[1764040171163,7.21552781,138.59,138.56,8.80994492]
[1764040171663,7.21552781,138.59,138.56,0.72]
[1764040172968,7.21552781,138.59,138.56,9.52994492]
[1764040173349,0.68,138.58,138.53,19.508864]
[1764040173549,10.14125289,138.59,138.55,0.72]
[1764040173752,7.21552781,138.59,138.55,0.72]
[1764040173953,7.89552781,138.59,138.56,8.80994492]
[1764040174447,7.21552781,138.59,138.56,0.72]
[1764040174652,7.21552781,138.59,138.57,0.72]
[1764040174863,7.89552781,138.59,138.56,9.52994492]
[1764040175164,7.21552781,138.59,138.56,9.52994492]
[1764040175369,7.21552781,138.59,138.57,0.72]
[1764040175778,7.21552781,138.59,138.56,8.80994492]
[1764040175779,7.89552781,138.59,138.56,8.80994492]
[1764040175948,2.92572508,138.58,138.53,23.52727702]
[1764040176152,2.92572508,138.58,138.54,8.80994492]
[1764040176367,2.92572508,138.57,138.54,8.80994492]
[1764040176577,0.68,138.57,138.54,9.52994492]
[1764040176871,0.68,138.56,138.53,3.2]
[1764040177061,5.44572508,138.58,138.54,9.52994492]
[1764040177373,12.66205715,138.58,138.54,9.52994492]
[1764040177574,13.34205715,138.58,138.55,0.72]
[1764040179165,13.34205715,138.58,138.54,8.80994492]
[1764040179372,7.89689352,138.57,138.54,9.52994492]
[1764040180276,10.1426186,138.57,138.54,8.80994492]
[1764040181348,10.1426186,138.57,138.54,9.52994492]
[1764040182281,2.92572508,138.56,138.53,3.2]
[1764040182651,0.68,138.55,138.53,3.2]
[1764040184282,7.21813194,138.54,138.52,8.80994492]
[1764040185372,7.21813194,138.54,138.52,9.52994492]
[1764040187179,7.89781363,138.55,138.52,9.52994492]
[1764040188881,7.21656924,138.57,138.53,9.52994492]
[1764040189185,7.21656924,138.57,138.53,11.77567]
[1764040189494,7.21656924,138.57,138.54,0.72]
[1764040190992,7.21552781,138.59,138.55,11.05567]
[1764040191293,2.92572508,138.58,138.55,8.80994492]
[1764040191458,2.92572508,138.58,138.53,12.70994492]
[1764040191788,0.68,138.57,138.54,0.72]
[1764040192377,2.92572508,138.57,138.53,11.98994492]
[1764040192803,7.21761097,138.55,138.53,11.98994492]
[1764040193302,7.21761097,138.55,138.53,12.68994492]
[1764040193486,7.91645698,138.58,138.54,0.7]
[1764040194399,27.50230328,138.58,138.54,0.7]
[1764040194586,0.7,138.57,138.53,8.80994492]
[1764040194787,7.21709006,138.56,138.53,8.80994492]
[1764040195193,7.91709006,138.56,138.53,9.50994492]
[1764040197487,0.69,138.55,138.51,3.92]
[1764040197801,2.93572508,138.55,138.51,0.72]
[1764040199006,7.21813194,138.54,138.51,0.72]
[1764040200324,0.69,138.53,138.49,12.70994492]
[1764040200698,2.93572508,138.53,138.49,12.70994492]
[1764040200910,0.69,138.53,138.49,12.70994492]
[1764040201098,2.93572508,138.53,138.49,12.70994492]
[1764040202015,7.21917412,138.52,138.49,12.70994492]
[1764040202591,7.21917412,138.52,138.49,11.98994492]
[1764040202786,7.21917412,138.52,138.5,0.72]
[1764040203598,7.21917412,138.52,138.49,12.70994492]
[1764040204995,7.90917412,138.52,138.49,12.70994492]
[1764040205797,7.21917412,138.52,138.49,12.70994492]
[1764040206497,0.69,138.52,138.49,12.70994492]
[1764040208622,7.90865299,138.53,138.5,0.72]
[1764040209021,7.90865299,138.53,138.49,19.21066304]
[1764040209229,7.90865299,138.53,138.49,19.93066304]
[1764040209399,0.69,138.52,138.49,19.93066304]
[1764040209598,7.21865299,138.53,138.5,0.72]
[1764040210330,7.90865299,138.53,138.5,0.72]
[1764040210511,7.90865299,138.53,138.49,11.98994492]
[1764040210713,7.21865299,138.53,138.5,0.72]
[1764040211103,7.90865299,138.53,138.5,0.72]
[1764040212020,7.90865299,138.53,138.51,8.80994492]
[1764040212021,7.21865299,138.53,138.51,8.80994492]
[1764040212433,7.21865299,138.53,138.51,9.52994492]
[1764040212608,7.21865299,138.53,138.51,8.80994492]
[1764040213125,7.21865299,138.53,138.51,9.52994492]
[1764040213638,25.2634618,138.54,138.52,0.72]
[1764040214015,7.21813194,138.54,138.52,0.72]
[1764040214223,7.21782336,138.55,138.52,4.22897993]
[1764040214721,7.21782336,138.55,138.53,0.72]
[1764040215230,25.26056363,138.56,138.53,0.72]
[1764040215426,25.95056363,138.56,138.53,0.72]
[1764040215738,7.21709006,138.56,138.53,0.72]
[1764040216532,7.90709006,138.56,138.53,0.72]
[1764040218921,0.69,138.55,138.53,8.80994492]
[1764040219128,0.69,138.55,138.52,3.18]
[1764040219516,0.69,138.55,138.52,3.9]
[1764040220342,7.21813194,138.54,138.52,3.9]
[1764040220838,25.41975359,138.58,138.53,9.52994492]
[1764040221045,7.21656924,138.57,138.53,13.03892485]
[1764040221345,7.21656924,138.57,138.54,0.72]
[1764040221532,0.69,138.56,138.53,8.80994492]
[1764040221732,11.41486255,138.59,138.54,0.72]
[1764040222037,13.90486255,138.59,138.54,0.72]
[1764040222219,0.69,138.58,138.54,0.72]
[1764040222433,7.90642346,138.58,138.54,0.72]
[1764040224435,7.21642346,138.58,138.54,11.4469347]
[1764040224645,7.21642346,138.58,138.55,0.71]
[1764040225141,7.90642346,138.58,138.55,0.71]
[1764040227256,4.19897993,138.57,138.53,8.80994492]
[1764040227645,0.69,138.56,138.53,8.80994492]
[1764040227971,7.90749856,138.56,138.53,9.51994492]
[1764040228863,0.69,138.56,138.53,9.51994492]
[1764040229260,7.21677114,138.57,138.54,0.71]
[1764040229965,7.21604849,138.58,138.54,7.92803557]
[1764040230349,4.19897993,138.57,138.53,8.80994492]
[1764040230744,3.50897993,138.57,138.53,9.51994492]